bitfinex/quotes_BTCUSD_20250403
["timestamp","ask_amount","ask_price","bid_price","bid_amount"]
[1743646958156,0.351988,83412.0,83408.0,0.00749285]
[1743646958362,0.00352076,83409.0,83408.0,0.00749285]
[1743646958769,0.011988,83412.0,83408.0,0.00749285]
[1743646958939,0.00352076,83409.0,83408.0,0.00749285]
[1743646959454,0.00352076,83409.0,83408.0,0.01123913]
[1743646959882,0.251754,83415.0,83408.0,0.01123913]
[1743646959883,0.00352076,83417.0,83411.0,0.011988]
[1743646960085,0.00352076,83412.0,83411.0,0.011988]
[1743646960329,0.25175,83416.0,83409.0,0.239782]
[1743646960514,0.00352076,83413.0,83409.0,0.251771]
[1743646960685,0.00352076,83410.0,83409.0,0.251771]
[1743646961598,0.00352076,83411.0,83409.0,0.251771]
[1743646961795,0.25175,83416.0,83409.0,0.251771]
[1743646961796,0.25527076,83416.0,83411.0,0.251764]
[1743646961994,0.000337,83423.0,83416.0,0.011988]
[1743646962231,0.00352076,83417.0,83416.0,0.25175]
[1743646962377,0.00352076,83417.0,83416.0,0.011988]
[1743646963208,0.00352076,83417.0,83416.0,0.01948045]
[1743646965907,0.00352076,83417.0,83416.0,0.02322642]
[1743646967055,0.000337,83423.0,83420.0,0.23975]
[1743646967254,0.000337,83423.0,83422.0,0.011987]
[1743646968621,0.000337,83423.0,83422.0,0.1287426]
[1743646969268,0.000337,83423.0,83422.0,0.5433423]
[1743646969443,0.000337,83423.0,83422.0,0.56282366]
[1743646969658,0.000337,83423.0,83422.0,0.70684899]
[1743646969837,0.000337,83423.0,83422.0,0.71284544]
[1743646971014,0.000337,83423.0,83422.0,0.72782699]
[1743646971217,0.000337,83423.0,83422.0,0.73282699]
[1743646971558,6e-07,83424.0,83423.0,0.352029]
[1743646971801,6e-07,83424.0,83423.0,0.50604795]
[1743646972124,6e-07,83424.0,83423.0,0.51353872]
[1743646972332,6e-07,83424.0,83423.0,0.52552931]
[1743646972783,2e-07,83442.0,83441.0,0.348974]
[1743646972953,2e-07,83442.0,83441.0,1.0206087]
[1743646973539,2e-07,83442.0,83441.0,1.02960297]
[1743646974040,9.42e-05,83442.0,83441.0,1.03934475]
[1743646974459,9.42e-05,83442.0,83441.0,1.05882611]
[1743646975301,9.42e-05,83442.0,83441.0,1.05282966]
[1743646976606,9.42e-05,83442.0,83441.0,1.04083907]
[1743646977592,9.42e-05,83442.0,83441.0,1.04079907]
[1743646978848,9.42e-05,83442.0,83441.0,1.05278966]
[1743646979020,9.42e-05,83442.0,83441.0,1.04778966]
[1743646979219,9.42e-05,83442.0,83441.0,1.05278966]
[1743646979456,9.42e-05,83442.0,83441.0,1.04778966]
[1743646979616,9.42e-05,83442.0,83441.0,0.90754966]
[1743646979958,9.42e-05,83442.0,83441.0,0.94349907]
[1743646980437,9.42e-05,83442.0,83441.0,0.4258352]
[1743646980604,9.42e-05,83442.0,83441.0,0.5660752]
[1743646980805,0.0481942,83442.0,83441.0,0.4258352]
[1743646981003,0.11349507,83442.0,83441.0,0.4258352]
[1743646981202,0.11049896,83442.0,83441.0,0.41834443]
[1743646981861,0.11049896,83442.0,83441.0,0.4145991]
[1743646982256,0.09851496,83442.0,83441.0,0.4145991]
[1743646982426,0.35018596,83442.0,83441.0,0.4145991]
[1743646983054,0.05041496,83442.0,83441.0,0.4145991]
[1743646983247,0.00361496,83442.0,83441.0,0.4145991]
[1743646983424,9.42e-05,83442.0,83441.0,0.4145991]
[1743646983629,0.00361496,83442.0,83441.0,0.4145991]
[1743646983854,0.01559896,83442.0,83441.0,0.4145991]
[1743646984750,0.00361496,83442.0,83441.0,0.4145991]
[1743646986649,0.01559896,83442.0,83441.0,0.4145991]
[1743646987456,0.30471876,83433.0,83432.0,0.0037451]
[1743646988228,0.25521876,83433.0,83432.0,0.0037451]
[1743646988410,0.251707,83430.0,83429.0,0.01198558]
[1743646988721,0.251714,83428.0,83424.0,0.0037451]
[1743646988897,0.011986,83427.0,83424.0,0.0037451]
[1743646989292,0.011986,83428.0,83424.0,0.0037451]
[1743646989612,0.011986,83427.0,83424.0,0.0037451]
[1743646989815,0.011986,83425.0,83424.0,0.0037451]
[1743646990161,0.011986,83427.0,83424.0,0.0037451]
[1743646991787,0.00352076,83435.0,83434.0,0.011985]
[1743646991997,9.42e-05,83442.0,83441.0,0.251674]
[1743646992193,9.42e-05,83442.0,83441.0,0.7830287]
[1743646993133,9.42e-05,83442.0,83441.0,0.7867738]
[1743646993774,9.42e-05,83442.0,83441.0,0.80624892]
[1743646994209,9.42e-05,83442.0,83441.0,0.81124892]
[1743646994438,9.42e-05,83442.0,83441.0,0.81724537]
[1743646994925,4e-07,83455.0,83454.0,0.256634]
[1743646995054,0.004,83459.0,83454.0,0.256634]
[1743646995055,4e-07,83468.0,83467.0,0.01698]
[1743646995254,0.0003372,83486.0,83485.0,0.251541]
[1743646995458,0.00079878,83486.0,83485.0,0.9230955]
[1743646996068,0.00079878,83486.0,83485.0,0.96729414]
[1743646999365,0.00079878,83486.0,83485.0,0.97932527]
[1743646999636,0.00079878,83486.0,83485.0,0.98787431]
[1743647000041,0.00079878,83486.0,83485.0,0.97584318]
[1743647000704,0.00079878,83486.0,83485.0,0.46734658]
[1743647000924,0.25233778,83486.0,83485.0,0.46734658]
[1743647001105,0.25233778,83486.0,83485.0,0.02322022]
[1743647002050,0.25585854,83486.0,83485.0,0.02322022]
[1743647002427,0.59585854,83486.0,83485.0,0.02322022]
[1743647002629,0.59585854,83486.0,83485.0,0.01947512]
[1743647002849,0.59585854,83486.0,83485.0,0.00748954]
[1743647003647,0.71261414,83486.0,83485.0,0.00748954]
[1743647003842,0.59506776,83483.0,83482.0,0.0037451]
[1743647004023,0.25509176,83475.0,83474.0,0.1071783]
[1743647004585,0.72358803,83475.0,83474.0,0.1071783]
[1743647004764,0.77268803,83475.0,83474.0,0.1071783]
[1743647004958,0.25512576,83464.0,83463.0,0.01198029]
[1743647005282,0.00352076,83464.0,83463.0,0.01572418]
[1743647005834,0.00352076,83465.0,83464.0,0.011981]
[1743647006028,0.00352076,83468.0,83467.0,0.01198]
[1743647007491,0.011979,83479.0,83472.0,0.01198]
[1743647007693,0.00352076,83474.0,83472.0,0.01198]
[1743647007892,0.00352076,83474.0,83473.0,0.011979]
[1743647008340,0.00352076,83476.0,83475.0,0.011979]
[1743647009079,0.00352076,83474.0,83473.0,0.01946716]
[1743647009820,0.00352076,83474.0,83473.0,0.00748816]
[1743647010120,0.00352076,83474.0,83473.0,0.01946716]
[1743647010935,0.00352076,83474.0,83473.0,0.00748816]
[1743647011251,0.25509476,83474.0,83473.0,0.00748816]
[1743647012147,0.01549976,83473.0,83472.0,0.00374336]
[1743647012322,0.01849494,83473.0,83472.0,0.00374336]
[1743647012513,0.01549976,83473.0,83472.0,0.00374336]
[1743647013127,0.01549976,83473.0,83470.0,0.4145989]
[1743647013128,0.01198,83471.0,83470.0,0.4145989]
[1743647013336,0.01550076,83471.0,83470.0,0.4145989]
[1743647015896,0.01198,83469.0,83462.0,0.011981]
[1743647016106,0.00352076,83467.0,83462.0,0.011981]
[1743647016304,0.00352076,83467.0,83462.0,0.02395977]
[1743647016868,0.251598,83466.0,83462.0,0.01197877]
[1743647017119,0.011981,83465.0,83463.0,0.00748782]
[1743647017285,0.251605,83464.0,83463.0,0.00748782]
[1743647018164,0.00352076,83467.0,83466.0,0.01198]
[1743647018591,0.340337,83474.0,83473.0,0.011979]
[1743647018592,0.34385776,83474.0,83473.0,0.011979]
[1743647018793,0.340337,83474.0,83473.0,0.011979]
[1743647019011,0.00385776,83474.0,83473.0,0.011979]
[1743647019588,0.00385776,83474.0,83473.0,0.01946682]
[1743647020518,0.000337,83474.0,83473.0,0.01946682]
[1743647020838,0.00385776,83474.0,83473.0,0.03144578]
[1743647021033,0.00385776,83474.0,83473.0,0.03518925]
[1743647021378,0.00385776,83474.0,83473.0,0.02321025]
[1743647022173,0.000337,83474.0,83473.0,0.03518925]
[1743647022367,0.00385776,83474.0,83473.0,0.03518925]
[1743647024440,0.000337,83474.0,83473.0,0.03518925]
[1743647025548,0.000337,83474.0,83473.0,0.56654375]
[1743647026069,0.000337,83474.0,83473.0,0.43780915]
[1743647026448,0.000337,83474.0,83473.0,0.45278239]
[1743647026651,0.012316,83474.0,83473.0,0.45877166]
[1743647027407,0.012316,83474.0,83473.0,0.43181946]
[1743647027927,0.06273676,83474.0,83473.0,0.01123129]
[1743647028127,0.06573193,83474.0,83473.0,0.01123129]
[1743647028716,0.06573193,83474.0,83473.0,0.00374347]
[1743647028921,0.06273676,83474.0,83473.0,0.00374347]
[1743647029743,0.01198,83471.0,83468.0,0.0001685]
[1743647030218,0.251589,83469.0,83468.0,0.0001685]
[1743647030819,0.71186536,83469.0,83468.0,0.0001685]
[1743647031042,0.71186536,83469.0,83468.0,0.00391242]
[1743647031314,0.71186536,83469.0,83468.0,0.0233808]
[1743647031578,0.35550076,83469.0,83468.0,0.0233808]
[1743647032156,0.35550076,83469.0,83468.0,0.00391242]
[1743647032773,0.35550076,83469.0,83468.0,0.0001685]
[1743647033846,0.35550076,83469.0,83468.0,0.0076565]
[1743647034384,0.47225636,83469.0,83468.0,0.0076565]
[1743647035188,0.47225636,83469.0,83468.0,0.0001685]
[1743647036493,0.46027636,83469.0,83468.0,0.0001685]
[1743647036689,0.47225636,83469.0,83468.0,0.0001685]
[1743647036924,0.35550076,83469.0,83468.0,0.0001685]
[1743647037324,0.35198,83469.0,83468.0,0.0001685]
[1743647037531,0.35550076,83469.0,83468.0,0.0001685]
[1743647038412,0.35198,83469.0,83468.0,0.0001685]
[1743647038637,0.35550076,83469.0,83468.0,0.0001685]
[1743647041028,0.47225636,83469.0,83468.0,0.0001685]
[1743647042429,0.35550076,83469.0,83468.0,0.0001685]
[1743647047980,0.35583776,83469.0,83468.0,0.0001685]
[1743647064917,0.352317,83469.0,83468.0,0.0001685]
[1743647065146,0.35583776,83469.0,83468.0,0.0001685]
[1743647066260,0.35583776,83469.0,83468.0,0.01140076]
[1743647070445,0.352317,83469.0,83468.0,0.01140076]
[1743647070747,0.35583776,83469.0,83468.0,0.01140076]
[1743647071710,0.340337,83469.0,83468.0,0.01140076]
[1743647072111,0.35583776,83469.0,83468.0,0.01140076]
[1743647072524,0.352317,83469.0,83468.0,0.01140076]
[1743647073524,0.352317,83469.0,83468.0,0.01739096]
[1743647073723,0.000337,83469.0,83468.0,0.01739096]
[1743647074057,0.000337,83469.0,83468.0,0.02937096]
[1743647074209,0.000337,83469.0,83468.0,0.04135131]
[1743647074929,0.000337,83469.0,83468.0,0.04883825]
[1743647075137,0.000337,83469.0,83467.0,0.22163359]
[1743647075350,0.000337,83469.0,83468.0,0.01198]
[1743647075980,0.000337,83469.0,83468.0,0.02695367]
[1743647077061,0.000337,83469.0,83468.0,0.60620817]
[1743647077864,0.000337,83469.0,83468.0,0.61813168]
[1743647083644,0.000337,83469.0,83468.0,0.61830018]
[1743647084379,0.000337,83469.0,83468.0,0.75830018]
[1743647084765,0.000337,83469.0,83468.0,0.543503]
[1743647086208,0.000337,83469.0,83468.0,0.1289041]
[1743647088482,0.000337,83469.0,83468.0,0.22436823]
[1743647088623,0.000337,83469.0,83468.0,0.10761263]
[1743647088624,0.251926,83469.0,83468.0,0.10761263]
[1743647089029,0.298026,83469.0,83468.0,0.10761263]
[1743647089824,0.30154676,83469.0,83468.0,0.10761263]
[1743647090281,0.75830236,83469.0,83468.0,0.10761263]
[1743647090591,0.80400236,83469.0,83468.0,6.3e-07]
[1743647090982,0.591616,83460.0,83459.0,0.00374404]
[1743647091134,0.7083716,83460.0,83459.0,0.00374404]
[1743647091336,0.25514976,83456.0,83455.0,0.01198093]
[1743647092217,0.011983,83446.0,83445.0,0.00748935]
[1743647092616,0.00352076,83451.0,83449.0,0.011983]
[1743647092834,0.00352076,83451.0,83447.0,0.251654]
[1743647093322,0.239628,83463.0,83453.0,0.011982]
[1743647093529,0.011982,83458.0,83453.0,0.011982]
[1743647093667,0.00352076,83457.0,83453.0,0.011982]
[1743647093878,0.00352076,83455.0,83453.0,0.011982]
[1743647094082,0.00352076,83457.0,83454.0,0.00374404]
[1743647094280,0.01198,83466.0,83454.0,0.00374404]
[1743647094281,0.00352076,83465.0,83462.0,0.23963]
[1743647094523,0.000337,83469.0,83466.0,0.239618]
[1743647094524,0.00013839,83468.0,83466.0,0.239618]
[1743647094725,0.00013839,83468.0,83465.0,0.011981]
[1743647094924,0.00013839,83468.0,83465.0,0.251601]
[1743647095390,0.00013839,83468.0,83463.0,0.251606]
[1743647095702,0.34013839,83468.0,83463.0,0.251607]
[1743647095907,0.00013839,83468.0,83463.0,0.011981]
[1743647096288,0.00013839,83468.0,83464.0,0.011981]
[1743647097337,0.00013839,83468.0,83465.0,0.00748775]
[1743647097532,0.00013839,83468.0,83465.0,0.24710675]
[1743647097735,0.00013839,83468.0,83467.0,0.01198]
[1743647097932,0.00013839,83468.0,83467.0,0.1287356]
[1743647098139,0.00013839,83468.0,83467.0,0.13247919]
[1743647098471,0.00013839,83468.0,83467.0,0.13996694]
[1743647100953,0.00013839,83468.0,83467.0,0.02321227]
[1743647101156,0.25173039,83468.0,83467.0,0.02321227]
[1743647101402,0.25525115,83468.0,83467.0,0.02321227]
[1743647102221,0.42160675,83468.0,83467.0,0.00374359]
[1743647102620,0.25513676,83460.0,83459.0,0.10743502]
[1743647104023,0.251634,83454.0,83453.0,0.00748868]
[1743647105342,0.25515476,83454.0,83453.0,0.00748868]
[1743647105921,0.011983,83448.0,83447.0,0.10760352]
[1743647106119,0.25515476,83454.0,83449.0,0.251647]
[1743647106120,0.00352076,83454.0,83449.0,0.251647]
[1743647106324,0.00352076,83455.0,83449.0,0.251647]
[1743647106575,0.011982,83456.0,83449.0,0.251647]
[1743647106762,0.00352076,83450.0,83447.0,0.0001685]
[1743647107902,0.00352076,83450.0,83448.0,0.00748907]
[1743647108330,0.25464571,83449.0,83448.0,0.00748907]
[1743647108573,0.25517076,83449.0,83448.0,0.00748907]
[1743647109335,0.011983,83448.0,83447.0,0.0001685]
[1743647109538,0.01550376,83448.0,83447.0,0.0001685]
[1743647109735,0.01849983,83448.0,83447.0,0.0001685]
[1743647110018,0.06419983,83448.0,83447.0,0.0001685]
[1743647110227,0.93555543,83448.0,83447.0,0.0001685]
[1743647110602,0.97885936,83448.0,83447.0,5e-07]
[1743647114476,0.59519176,83442.0,83441.0,1e-06]
[1743647114646,0.71194736,83442.0,83441.0,1e-06]
[1743647115645,1.12654736,83442.0,83441.0,1e-06]
[1743647115841,1.17194736,83442.0,83441.0,1e-06]
[1743647116042,0.69014976,83423.0,83422.0,0.0001685]
[1743647116246,1.36146536,83423.0,83422.0,0.0002625]
[1743647121025,1.36150536,83423.0,83422.0,0.0002625]
[1743647121802,1.00984976,83423.0,83422.0,0.0002625]
[1743647121981,1.006329,83423.0,83422.0,0.0002625]
[1743647122339,1.00984976,83423.0,83422.0,0.0002625]
[1743647122533,1.006329,83423.0,83422.0,0.0002625]
[1743647122774,1.00984976,83423.0,83422.0,0.0002625]
[1743647124614,1.006329,83423.0,83422.0,0.0002625]
[1743647124898,1.00984976,83423.0,83422.0,0.0002625]
[1743647127349,0.59524976,83423.0,83422.0,0.0002625]
[1743647128396,0.00352076,83423.0,83422.0,0.0002625]
[1743647128639,0.34,83427.0,83422.0,0.0002625]
[1743647129040,0.011986,83426.0,83422.0,0.0002625]
[1743647129482,0.34,83425.0,83422.0,0.0002625]
[1743647129863,0.25172,83426.0,83422.0,0.0002625]
[1743647129864,0.011986,83426.0,83422.0,0.0002625]
[1743647130043,0.011986,83427.0,83422.0,0.0002625]
[1743647130044,0.00352076,83427.0,83422.0,0.2519915]
[1743647130423,0.01550676,83427.0,83422.0,0.0122495]
[1743647130624,0.00352076,83427.0,83424.0,0.239739]
[1743647130824,0.00352076,83427.0,83424.0,0.011986]
[1743647131107,0.00352076,83427.0,83423.0,0.011987]
[1743647131839,0.01550676,83427.0,83422.0,0.0122495]
[1743647132278,0.01550676,83427.0,83423.0,0.00749172]
[1743647132666,0.00352076,83426.0,83423.0,0.00749172]
[1743647132868,0.25524076,83426.0,83424.0,0.0001685]
[1743647133690,0.00352076,83426.0,83424.0,0.0001685]
[1743647133892,0.00352076,83426.0,83425.0,0.00749172]
[1743647134128,0.01550676,83426.0,83425.0,0.00749172]
[1743647134920,0.00352076,83426.0,83425.0,0.00749172]
[1743647136468,0.25523976,83426.0,83425.0,0.00749172]
[1743647138081,0.25523976,83426.0,83424.0,0.0001685]
[1743647138082,0.011986,83425.0,83424.0,0.0001685]
[1743647138769,0.01550676,83425.0,83424.0,0.0001685]
[1743647140044,0.57045942,83425.0,83424.0,0.0001685]
[1743647140288,0.56746236,83425.0,83424.0,0.0001685]
[1743647141025,0.56746236,83425.0,83424.0,5e-07]
[1743647144823,0.56746236,83425.0,83404.0,0.01198886]
[1743647144824,0.25530276,83405.0,83404.0,0.01198886]
[1743647145030,0.25530276,83405.0,83404.0,0.01211046]
[1743647145981,0.25530276,83405.0,83404.0,0.0001216]
[1743647149535,0.26737175,83405.0,83404.0,0.0001216]
[1743647154449,0.77382735,83405.0,83404.0,0.0001216]
[1743647156673,1.18842735,83405.0,83404.0,0.0001216]
[1743647158813,1.18842735,83405.0,83404.0,0.0002901]
[1743647160028,0.59531276,83402.0,83401.0,8.7e-07]
[1743647160239,0.71206836,83402.0,83401.0,8.7e-07]
[1743647165377,1.12666836,83402.0,83401.0,8.7e-07]
[1743647167805,1.26662836,83402.0,83401.0,8.7e-07]
[1743647169092,1.14987276,83402.0,83401.0,8.7e-07]
[1743647169670,1.00991276,83402.0,83401.0,8.7e-07]
[1743647170576,0.59531276,83402.0,83401.0,8.7e-07]
[1743647170921,0.76176836,83402.0,83401.0,8.7e-07]
[1743647171124,0.80796836,83402.0,83401.0,8.7e-07]
[1743647171716,0.80796836,83402.0,83401.0,0.00016937]
[1743647171865,0.80830536,83402.0,83401.0,0.00016937]
[1743647174223,1.22290536,83402.0,83401.0,0.00016937]
[1743647174870,1.22290536,83402.0,83401.0,3.7e-07]
[1743647176944,1.12700536,83402.0,83401.0,3.7e-07]
[1743647177759,1.01024976,83402.0,83401.0,3.7e-07]
[1743647186277,1.12700536,83402.0,83401.0,3.7e-07]
[1743647188259,1.22300536,83402.0,83401.0,3.7e-07]
[1743647190755,1.22300536,83402.0,83384.0,0.0001685]
[1743647190756,0.24337176,83385.0,83369.0,7.6e-07]
[1743647190955,0.01551476,83370.0,83369.0,0.00045955]
[1743647191163,0.47526983,83370.0,83369.0,0.00045955]
[1743647191396,0.47227036,83370.0,83369.0,0.00045955]
[1743647192680,0.51817036,83370.0,83369.0,5.5e-07]
[1743647192811,0.47227036,83370.0,83369.0,5.5e-07]
[1743647194549,0.01551676,83358.0,83357.0,5.5e-07]
[1743647194785,1.07469236,83358.0,83357.0,5.5e-07]
[1743647194973,0.91003676,83358.0,83357.0,5.5e-07]
[1743647195184,1.02679236,83358.0,83357.0,5.5e-07]
[1743647196335,0.91003676,83358.0,83357.0,5.5e-07]
[1743647198569,0.78203911,83358.0,83357.0,5.5e-07]
[1743647198914,0.00352076,83358.0,83357.0,5.5e-07]
[1743647199104,0.01551676,83358.0,83357.0,5.5e-07]
[1743647199955,0.251899,83367.0,83358.0,0.011996]
[1743647200164,0.011995,83363.0,83359.0,0.00527463]
[1743647200368,0.00352076,83360.0,83359.0,0.00527463]
[1743647200608,0.011995,83362.0,83357.0,5.5e-07]
[1743647200811,0.239872,83378.0,83357.0,5.5e-07]
[1743647200812,0.011994,83371.0,83360.0,0.011996]
[1743647201084,0.251891,83369.0,83363.0,0.011995]
[1743647201290,0.34,83368.0,83361.0,0.01726333]
[1743647201560,0.34,83368.0,83364.0,0.00507909]
[1743647201842,0.34,83368.0,83365.0,0.00507909]
[1743647202257,0.011994,83369.0,83364.0,0.011995]
[1743647202499,0.351995,83368.0,83363.0,0.011995]
[1743647202846,0.00352076,83365.0,83362.0,0.011995]
[1743647203236,0.00352076,83366.0,83362.0,0.011995]
[1743647203439,0.00352076,83360.0,83357.0,5.5e-07]
[1743647203624,0.01551676,83358.0,83357.0,5.5e-07]
[1743647203827,0.01851623,83358.0,83357.0,5.5e-07]
[1743647204021,0.47527183,83358.0,83357.0,5.5e-07]
[1743647204251,0.47227236,83358.0,83357.0,5.5e-07]
[1743647207200,0.88687236,83358.0,83357.0,5.5e-07]
[1743647207657,0.91907051,83358.0,83357.0,5.5e-07]
[1743647207957,0.96637051,83358.0,83357.0,5.5e-07]
[1743647208375,0.59549376,83342.0,83341.0,5e-07]
[1743647208578,1.97902936,83342.0,83341.0,5e-07]
[1743647209587,0.59397084,83331.0,83330.0,5.2e-07]
[1743647209779,0.63723,83323.0,83322.0,2e-08]
[1743647209989,0.89742636,83323.0,83322.0,2e-08]
[1743647210596,0.87341508,83323.0,83322.0,2e-08]
[1743647211638,0.62132109,83323.0,83322.0,2e-08]
[1743647211791,0.50456549,83323.0,83322.0,2e-08]
[1743647211973,0.49544176,83323.0,83322.0,2e-08]
[1743647214103,0.48344076,83323.0,83322.0,2e-08]
[1743647214234,0.49544176,83323.0,83322.0,2e-08]
[1743647214656,0.49544176,83323.0,83322.0,0.00486367]
[1743647214857,0.49544176,83323.0,83322.0,2e-08]
[1743647218289,0.49544176,83323.0,83322.0,0.00016862]
[1743647218843,0.34,83323.0,83322.0,0.00016862]
[1743647219051,0.34,83326.0,83322.0,0.00016862]
[1743647219244,0.34,83330.0,83325.0,0.012001]
[1743647219471,0.34,83330.0,83327.0,0.012]
[1743647219702,0.34,83330.0,83326.0,0.00488556]
[1743647219891,0.34,83328.0,83323.0,0.012001]
[1743647220059,0.34352076,83328.0,83327.0,0.00488556]
[1743647220272,0.34352076,83328.0,83322.0,0.00016862]
[1743647220273,0.01552176,83323.0,83322.0,0.00016862]
[1743647220470,0.240012,83329.0,83322.0,0.01216962]
[1743647220686,0.01552176,83323.0,83322.0,0.00016862]
[1743647222402,0.01852251,83323.0,83322.0,0.00016862]
[1743647224344,0.47227736,83323.0,83322.0,0.00016862]
[1743647226148,0.47227736,83323.0,83322.0,6.2e-07]
[1743647229952,0.88687736,83323.0,83322.0,6.2e-07]
[1743647230333,0.88721476,83323.0,83322.0,6.2e-07]
[1743647234483,0.59556676,83318.0,83317.0,1.2e-07]
[1743647234631,0.71232236,83318.0,83317.0,1.2e-07]
[1743647236465,0.7088016,83318.0,83317.0,1.2e-07]
[1743647236674,0.73548676,83318.0,83317.0,1.2e-07]
[1743647236916,0.731966,83318.0,83317.0,1.2e-07]
[1743647237046,0.73548676,83318.0,83317.0,1.2e-07]
[1743647238678,0.731966,83318.0,83317.0,1.2e-07]
[1743647238887,0.73548676,83318.0,83317.0,1.2e-07]
[1743647241723,0.731966,83318.0,83317.0,1.2e-07]
[1743647241927,0.73548676,83318.0,83317.0,1.2e-07]
[1743647243693,0.85224236,83318.0,83317.0,1.2e-07]
[1743647244706,1.26684236,83318.0,83317.0,1.2e-07]
[1743647246750,0.48344076,83318.0,83317.0,1.2e-07]
[1743647246948,0.35552276,83318.0,83317.0,1.2e-07]
[1743647248330,0.352002,83318.0,83317.0,1.2e-07]
[1743647248561,0.012001,83321.0,83317.0,1.2e-07]
[1743647248727,0.252039,83320.0,83317.0,1.2e-07]
[1743647248975,0.0003374,83322.0,83318.0,0.252046]
[1743647249745,0.0003374,83322.0,83321.0,0.252036]
[1743647250577,0.0003374,83322.0,83321.0,0.26178714]
[1743647251491,0.0003374,83322.0,83321.0,0.26928779]
[1743647252982,0.0003374,83322.0,83321.0,0.38604339]
[1743647254059,0.0003374,83322.0,83321.0,0.38004294]
[1743647255571,0.0003374,83322.0,83321.0,0.47704294]
[1743647255779,0.0003374,83322.0,83321.0,0.48904194]
[1743647256199,0.0003374,83322.0,83321.0,0.48921064]
[1743647256599,0.0003374,83322.0,83321.0,0.49521109]
[1743647257000,0.0003374,83322.0,83321.0,0.50721214]
[1743647258406,0.0003374,83322.0,83321.0,0.41533709]
[1743647259354,0.0003374,83322.0,83321.0,0.52009164]
[1743647260297,0.00398133,83342.0,83341.0,0.251975]
[1743647260298,0.00046057,83342.0,83341.0,0.251975]
[1743647260526,0.00046057,83342.0,83341.0,0.391815]
[1743647261083,0.00046057,83342.0,83341.0,0.13984]
[1743647261489,0.00046057,83342.0,83341.0,0.151838]
[1743647263935,0.00046057,83342.0,83341.0,0.2685936]
[1743647264157,0.00046057,83342.0,83341.0,0.3172936]
[1743647264360,5.7e-07,83342.0,83341.0,1.1295443]
[1743647264517,0.0003372,83370.0,83357.0,0.011996]
[1743647264722,0.0003372,83370.0,83357.0,0.5573226]
[1743647265360,0.0003372,83370.0,83357.0,0.6064226]
[1743647265563,0.0003372,83370.0,83357.0,0.62714531]
[1743647266012,0.0003372,83370.0,83357.0,1.04174531]
[1743647269480,4e-07,83370.0,83369.0,0.251891]
[1743647269780,4e-07,83370.0,83369.0,0.3686466]
[1743647270403,4e-07,83370.0,83369.0,0.37614725]
[1743647270801,0.00011094,83370.0,83369.0,0.37614725]
[1743647271564,0.00011094,83370.0,83369.0,0.3686466]
[1743647272310,9.4e-07,83370.0,83369.0,0.8372466]
[1743647273154,9.4e-07,83370.0,83369.0,0.84474725]
[1743647273326,9.4e-07,83370.0,83369.0,0.84849794]
[1743647276667,9.4e-07,83370.0,83369.0,1.26644603]
[1743647277668,9.4e-07,83370.0,83369.0,1.27844708]
[1743647278106,0.004,83399.0,83398.0,0.251803]
[1743647280537,0.0043372,83399.0,83398.0,0.25930365]
[1743647281096,0.0043372,83399.0,83398.0,0.37605925]
[1743647281308,0.0043372,83399.0,83398.0,0.37980994]
[1743647281700,0.0043372,83399.0,83398.0,0.39181099]
[1743647283445,0.0043372,83399.0,83398.0,0.39781144]
[1743647285473,0.0043372,83399.0,83398.0,0.40626846]
[1743647287151,0.0043372,83399.0,83398.0,0.39781144]
[1743647288435,0.0043372,83399.0,83398.0,0.02925284]
[1743647288634,0.0043372,83399.0,83398.0,0.18092284]
[1743647288993,0.0043372,83399.0,83398.0,0.04124284]
[1743647293026,0.000337,83402.0,83399.0,0.251801]
[1743647293987,0.000337,83402.0,83398.0,0.04505929]
[1743647293988,0.01551076,83399.0,83398.0,0.03306929]
[1743647294221,0.06361076,83399.0,83398.0,0.01356759]
[1743647294382,0.000337,83402.0,83401.0,0.01199]
[1743647294821,0.000337,83402.0,83401.0,0.1287456]
[1743647295017,0.000337,83402.0,83401.0,0.01199]
[1743647295198,0.000337,83402.0,83401.0,0.02174114]
[1743647295408,0.000337,83402.0,83401.0,0.0412221]
[1743647297778,0.000337,83402.0,83401.0,0.15651665]
[1743647299878,0.000337,83402.0,83401.0,0.08736496]
[1743647300480,0.000337,83402.0,83401.0,0.20412056]
[1743647300643,0.000337,83402.0,83401.0,0.25352056]
[1743647302685,0.0003374,83406.0,83405.0,0.251782]
[1743647302896,0.0003374,83406.0,83405.0,0.40584085]
[1743647303121,0.0003374,83406.0,83405.0,0.42532181]
[1743647304011,0.0003374,83406.0,83405.0,0.43507295]
[1743647310490,0.0003374,83406.0,83405.0,0.57467295]
[1743647310703,0.0003374,83406.0,83405.0,0.62177295]
[1743647311675,0.34,83433.0,83425.0,0.251722]
[1743647311872,0.351985,83433.0,83425.0,0.251722]
[1743647312654,0.351985,83433.0,83425.0,0.27120296]
[1743647313073,0.004,83429.0,83425.0,0.27120296]
[1743647313283,0.004,83429.0,83425.0,0.38795856]
[1743647313857,0.011986,83427.0,83425.0,0.01948096]
[1743647314069,0.0581234,83426.0,83425.0,0.01948096]
[1743647314653,0.0461374,83426.0,83425.0,0.0292321]
[1743647314884,0.0461374,83426.0,83425.0,0.0412181]
[1743647315214,0.0461374,83426.0,83425.0,0.0292321]
[1743647315404,0.0461374,83426.0,83425.0,0.02323165]
[1743647315704,0.0581234,83426.0,83425.0,0.01124337]
[1743647317854,0.0361234,83426.0,83425.0,0.01124337]
[1743647318790,0.03912018,83426.0,83425.0,0.01124337]
[1743647318939,0.04264105,83426.0,83425.0,0.01124337]
[1743647319145,0.03964416,83426.0,83425.0,0.01124337]
[1743647319661,0.03964416,83426.0,83425.0,0.00749268]
[1743647320230,0.02765816,83426.0,83425.0,0.00749268]
[1743647320436,0.02765816,83426.0,83420.0,0.11942606]
[1743647320437,0.251722,83425.0,83420.0,0.11942606]
[1743647320637,0.251722,83425.0,83421.0,0.00374574]
[1743647321067,0.011986,83424.0,83421.0,0.00374574]
[1743647321667,0.011986,83424.0,83422.0,0.0074915]
[1743647322515,0.011986,83424.0,83418.0,0.011987]
[1743647323092,0.011986,83424.0,83419.0,0.00374575]
[1743647323671,0.011986,83424.0,83420.0,0.0074915]
[1743647323868,0.25524276,83425.0,83420.0,0.0194785]
[1743647324080,0.239742,83423.0,83420.0,0.0074915]
[1743647324376,0.00299693,83422.0,83421.0,0.00374575]
[1743647324799,0.251729,83423.0,83421.0,0.00374575]
[1743647324967,0.251729,83423.0,83421.0,0.01123725]
[1743647325587,0.251729,83423.0,83422.0,0.00374575]
[1743647326001,0.251729,83423.0,83422.0,0.01123725]
[1743647327546,0.25524976,83423.0,83422.0,0.01123725]
[1743647328513,0.011987,83417.0,83412.0,0.01198633]
[1743647329614,0.011987,83417.0,83413.0,0.00749212]
[1743647329818,0.00352076,83419.0,83413.0,0.26299618]
[1743647330018,0.00651778,83419.0,83413.0,0.26299618]
[1743647330483,0.251743,83418.0,83413.0,0.02322618]